fUST/lending_fUST_20240418
["ID","MTS","AMOUNT","RATE_DAILY","PERIOD"]
[322848790,1713403850316,-224.79336616,0.00034898,4]
[322848791,1713403850325,-1296.39,0.00034899,7]
[322848792,1713403850334,-1296.39,0.00034899,7]
[322848793,1713403850343,-1588.08242979,0.00034899,60]
[322848794,1713403850353,-40570.31717171,0.000349,2]
[322848796,1713404073898,-205.8725987,0.00023945,2]
[322848797,1713404073923,-1000.0,0.00023946,2]
[322848798,1713404132957,3670.40310639,0.00023946,10]
[322848800,1713404148961,3670.40310639,0.00023946,10]
[322848801,1713404171002,2641.88130787,0.00023946,10]
[322848804,1713404745113,-205.8725987,0.00027396,2]
[322848805,1713404745134,-40.17361663,0.00027397,2]
[322848806,1713404959111,-131.69860737,0.00027397,2]
[322848807,1713404959133,-157.519236,0.00027397,2]
[322848809,1713405038535,-27.33846837,0.00030411,4]
[322848821,1713405043379,-183.71500228,0.00030411,4]
[322848822,1713405043389,-419.125,0.00030412,2]
[322848823,1713405043398,-255.90806058,0.00031408,30]
[322848824,1713405043407,-5945.199,0.00031996,30]
[322848825,1713405043416,-166.666666,0.00032673,2]
[322848826,1713405043425,-200.0,0.00032681,15]
[322848827,1713405043434,-168.4931456,0.00032953,2]
[322848828,1713405043443,-264.0,0.00033,2]
[322848829,1713405043452,-264.0,0.00033151,2]
[322848830,1713405043461,-171.872224,0.00033165,2]
[322848831,1713405043471,-166.666666,0.00033564,2]
[322848832,1713405043481,-400.0,0.00033999,2]
[322848833,1713405043490,-1819.74018559,0.00034,30]
[322848834,1713405043499,-218.79937244,0.00034,7]
[322848835,1713405043508,-336.48618912,0.00034421,6]
[322848836,1713405043517,-465.69717256,0.00034454,4]
[322848837,1713405043527,-166.666666,0.00034455,2]
[322848838,1713405043536,-1001.56030029,0.000345,2]
[322848839,1713405043546,-264.0,0.00034521,2]
[322848840,1713405043555,-1000.0,0.00034643,2]
[322848841,1713405043564,-1000.0,0.00034656,2]
[322848842,1713405043574,-1000.0,0.00034667,2]
[322848843,1713405043583,-1000.0,0.00034685,2]
[322848844,1713405043592,-483.60808761,0.00034742,2]
[322848845,1713405043601,-1000.0,0.00034762,2]
[322848846,1713405043610,-11019.55331429,0.00034777,2]
[322848847,1713405043664,-253.10221469,0.00034777,2]
[322848925,1713405264053,1425.27463818,0.000125,2]
[322848926,1713405285116,6752.86871311,0.0002509,2]
[322848928,1713405349229,154.82968734,0.0002509,2]
[322848931,1713405366056,154.82968734,0.0002509,2]
[322848932,1713405391233,154.82968734,0.0002509,2]
[322848933,1713405392856,154.82968734,0.0002509,2]
[322848935,1713405408977,156.17401962,0.0002509,2]
[322848936,1713405415236,154.82968734,0.0002509,2]
[322848938,1713405437245,162.91232618,0.0002509,2]
[322848942,1713405726908,155.25507585,0.00025074,2]
[322848945,1713406008123,-154.53129958,0.00027348,2]
[322848948,1713406054092,-471.481164,0.00027344,2]
[322848949,1713406147094,-2015.073668,0.00026698,2]
[322848950,1713406147116,-525.85280241,0.00027336,2]
[322848951,1713406147136,-154.82968734,0.00027336,2]
[322848952,1713406147155,-767.25941851,0.00027337,5]
[322848953,1713406147175,-154.82968734,0.00027337,2]
[322848954,1713406147196,-154.82968734,0.00027338,2]
[322848955,1713406147216,-474.3197252,0.00027338,2]
[322848956,1713406147235,-186.02854111,0.00027339,2]
[322848957,1713406147256,-563.98339128,0.00027339,2]
[322848958,1713406147277,-154.82968734,0.00027339,2]
[322848959,1713406147296,-205.8725987,0.0002734,2]
[322848960,1713406147320,-1489.89563235,0.0002734,2]
[322848961,1713406165723,441.85149502,0.00025448,5]
[322848962,1713406165746,151.74825175,0.00025448,5]
[322849016,1713406232450,-397.94897537,0.0002524,2]
[322849017,1713406232461,-173.36921966,0.00025448,5]
[322849018,1713406232470,-161.56708886,0.00027337,2]
[322849019,1713406232481,-24.46145225,0.00027337,2]
[322849020,1713406232490,-407.3318693,0.00027338,2]
[322849254,1713406240520,-118.52093311,0.00027338,2]
[322849255,1713406240530,-1575.87720725,0.00027338,2]
[322849256,1713406240539,-563.98339128,0.00027339,2]
[322849257,1713406240548,-205.8725987,0.00027339,2]
[322849258,1713406240557,-154.82968734,0.00027339,2]
[322849259,1713406240567,-1876.27918073,0.0002734,2]
[322849260,1713406240576,-300.0,0.0002734,2]
[322849261,1713406240585,-300.0,0.0002734,2]
[322849262,1713406240594,-376.953166,0.00027397,2]
[322849263,1713406240603,-168.14975,0.00027397,2]
[322849264,1713406240612,-166.666666,0.00027764,2]
[322849265,1713406240621,-585.33410271,0.00028051,2]
[322849299,1713406243593,-2585.4644162,0.00027337,2]
[322849300,1713406243603,-1526.47328679,0.00028051,2]
[322849301,1713406243612,-166.551723,0.00028144,2]
[322849302,1713406243622,-739.8331584,0.00028154,2]
[322849303,1713406243631,-560.52664507,0.00028255,4]
[322849304,1713406243640,-435.98305474,0.00028276,2]
[322849305,1713406243649,-155.30696188,0.00028276,2]
[322849306,1713406243658,-222.63814741,0.00028276,2]
[322849307,1713406243667,-187.32811349,0.00028276,2]
[322849308,1713406243676,-185.60995465,0.00028277,2]
[322849309,1713406243685,-15393.6275239,0.00028278,2]
[322849351,1713406349639,200.01883846,0.000249,5]
[322849355,1713406986849,1898.19,0.000252,2]
[322849356,1713407078700,1007.536834,0.00025041,2]
[322849357,1713407109449,2762.57089482,0.000252,10]
[322849358,1713407194113,14722.36270243,0.00025067,2]
[322849359,1713407210134,-185.00283239,0.00025066,2]
[322849362,1713407240095,-243.31260589,0.00025064,2]
[322849363,1713407240116,-200.81896578,0.00025065,2]
[322849364,1713407243098,-422.38086899,0.00025065,2]
[322849365,1713407243120,-300.0,0.00025066,2]
[322849366,1713407243141,-300.0,0.00025066,2]
[322849367,1713407243161,-20.86976631,0.00025066,2]
[322849368,1713407243181,-2019.32025952,0.00025067,2]
[322849369,1713407347105,-1876.27918073,0.00025065,2]
[322849370,1713407347127,-907.16710257,0.00025066,10]
[322849371,1713407347149,-300.0,0.00025066,2]
[322849372,1713407347170,-300.0,0.00025066,2]
[322849373,1713407347191,-18931.87018585,0.00025067,2]
[322849374,1713407347213,-490.46081448,0.00025266,2]
[322849375,1713407347236,-7405.5492389,0.00025366,2]
[322849376,1713407347257,-200.0,0.00025512,15]
[322849377,1713407347278,-844.44534215,0.00026178,2]
[322849378,1713407347298,-579.89210376,0.0002664,2]
[322849379,1713407357103,-420.10789624,0.0002664,2]
[322849380,1713407357130,-999.56615412,0.0002664,2]
[322849381,1713407430287,307.35571228,0.00023266,2]
[322849564,1713407443836,-93.83864175,0.00023266,2]
[322849593,1713407917455,9200.0,0.000261,89]
[322849594,1713408182609,920.0,0.00025,30]
[322849595,1713408330135,-168.036925,0.00021726,2]
[322849596,1713408330154,-298.77408694,0.00022199,2]
[322849598,1713408434094,-1637.46499338,0.00022198,2]
[322849599,1713408442100,-156.3507885,0.00021868,2]
[322849600,1713408549118,-625.19799536,0.00021742,2]
[322849601,1713408549139,-739.8331584,0.00021743,2]
[322849602,1713408549160,-300.0,0.00021867,2]
[322849603,1713408549180,-300.0,0.00021867,2]
[322849604,1713408549313,-15237.2767354,0.00021868,2]
[322849605,1713408549334,-154.82968734,0.00021868,2]
[322849606,1713408549356,-2585.4644162,0.00022205,2]
[322849607,1713408549376,-1526.4732867,0.00022206,2]
[322849608,1713408549396,-503.768417,0.00022449,2]
[322849609,1713408549416,-166.551723,0.00023068,2]
[322849610,1713408549437,-18097.62169042,0.00023265,2]
[322849611,1713408560100,-499.21904326,0.00022349,2]
[322849612,1713408560120,-1585.59965776,0.00023265,2]
[322849613,1713408560140,-9054.15542577,0.00023266,2]
[322849614,1713408560159,-154.96474389,0.00023266,2]
[322849615,1713408560179,-420.0,0.00023765,2]
[322849616,1713408560199,-512.62858684,0.00024,2]
[322849617,1713408560219,-420.0,0.00024053,2]
[322849618,1713408560238,-198.32439914,0.0002495,2]
[322849619,1713408560259,-587.0,0.00025828,2]
[322849620,1713408560282,-587.0,0.00026459,2]
[322849621,1713408565385,154.82968734,0.00021868,2]
[322849622,1713408583390,112.81724515,0.00022349,2]
[322849706,1713408640973,-185.60284247,0.00022349,2]
[322849707,1713408640983,-338.03415762,0.00024,2]
[322849741,1713408643908,-3.71823361,0.00024,2]
[322849743,1713408643918,-203.252708,0.00027397,2]
[322849745,1713408643927,-162.826317,0.00027397,2]
[322849747,1713408643937,-157.519236,0.00027397,2]
[322849749,1713408643947,-166.666666,0.00027397,2]
[322849751,1713408643956,-358.105507,0.00027397,2]
[322849753,1713408643965,-164.428695,0.00027901,2]
[322849755,1713408643974,-166.666666,0.00028038,2]
[322849757,1713408643983,-1000.0,0.00028275,2]
[322849758,1713408643992,-300.0,0.00028275,2]
[322849759,1713408644002,-300.0,0.00028275,2]
[322849760,1713408644011,-1668.52950491,0.00028276,2]
[322849761,1713408644020,-436.46288447,0.00028276,2]
[322849762,1713408644029,-194.31350122,0.00028276,2]
[322849763,1713408644039,-616.62306131,0.00028277,2]
[322849764,1713408644048,-185.9732442,0.00028277,2]
[322849765,1713408644058,-155.04633663,0.00028278,2]
[322849766,1713408644068,-417.0,0.00028446,2]
[322849767,1713408644078,-166.666666,0.00028679,2]
[322849768,1713408644087,-251.884208,0.00028792,2]
[322849769,1713408644099,-341.75239123,0.00029,2]
[322849770,1713408644110,-166.666666,0.00029321,2]
[322849771,1713408644120,-166.666666,0.00029962,2]
[322849772,1713408644130,-168.71801131,0.0003,2]
[322849773,1713408644140,-211.05347065,0.0003,4]
[322849774,1713408644151,-453.66,0.00030137,7]
[322849775,1713408644163,-635.60849461,0.0003041,4]
[322849776,1713408644330,-627.4925571,0.00030411,4]
[322849777,1713408644341,-420.0,0.00030528,2]
[322849778,1713408644353,-166.666666,0.00030603,2]
[322849779,1713408644363,-420.0,0.00031102,2]
[322849780,1713408644373,-499.21904324,0.00031213,5]
[322849781,1713408644382,-774.41747998,0.00031244,2]
[322849782,1713408644392,-244.34140711,0.00031342,4]
[322849783,1713408644402,-242.45979496,0.00031342,4]
[322849785,1713408644411,-1238.07466823,0.00031342,4]
[322849797,1713409653157,-471.481164,0.00027396,2]
[322849865,1713409838018,-188.66201149,0.00027297,2]
[322849867,1713409838027,-390.89970679,0.00027297,2]
[322849870,1713409838037,-613.81014019,0.00027396,2]
[322849872,1713409838046,-167.033969,0.00027397,2]
[322849873,1713409838055,-339.633757,0.00027397,2]
[322849875,1713409838064,-593.59974677,0.00028208,5]
[322849877,1713409838073,-166.666666,0.00028842,2]
[322849879,1713409838082,-842.51405263,0.00029,2]
[322849881,1713409838091,-164.428695,0.00029039,2]
[322849883,1713409838100,-150.0,0.00029242,2]
[322849885,1713409838109,-185.0,0.00029243,2]
[322849887,1713409838119,-251.884208,0.0002932,2]
[322849889,1713409838129,-166.666666,0.00029628,2]
[322849891,1713409838138,-1017.25389628,0.00029987,2]
[322849893,1713409838147,-166.666666,0.00030414,2]
[322849895,1713409838156,-1001.586012,0.000308,6]
[322849897,1713409838166,-156.03520386,0.00030931,3]
[322849900,1713409838176,-400.0,0.00031087,2]
[322849901,1713409838185,-400.0,0.00031087,2]
[322849904,1713409838195,-9533.7447491,0.00031088,2]
[322849906,1713409838204,-166.666666,0.00031201,2]
[322849908,1713409838213,-423.08947681,0.00031241,5]
[322849910,1713409838224,-1000.0,0.000313,4]
[322849911,1713409838233,-864.10897661,0.000313,6]
[322850344,1713409843324,-150.0,0.00029141,2]
[322850346,1713409843333,-135.89102339,0.000313,6]
[322850347,1713409843342,-186.0,0.0003134,2]
[322850348,1713409843351,-5150.79015449,0.0003134,4]
[322850351,1713409846300,-441.85149502,0.0003134,4]
[322850355,1713409846328,-2220.38607008,0.0003134,4]
[322850357,1713409846336,-1000.0,0.00031341,2]
[322850359,1713409846346,-665.79800226,0.00031342,4]
[322850360,1713409846355,-187.32811349,0.00031342,4]
[322850361,1713409846364,-185.60995465,0.00031342,4]
[322850362,1713409846373,-155.30696188,0.00031342,4]
[322850363,1713409846389,-435.98305474,0.00031342,4]
[322850364,1713409846398,-222.63814741,0.00031342,4]
[322850365,1713409846407,-1260.70195912,0.00031342,4]
[322850366,1713409846416,-363.39680183,0.00031342,4]
[322850367,1713409846425,-445.0,0.00031342,30]
[322850368,1713409846434,-272.58497111,0.00031342,4]
[322850369,1713409846442,-6816.60813554,0.00031342,7]
[322850370,1713409846451,-5000.0,0.00031342,4]
[322850371,1713409846460,-154.91500174,0.00031342,4]
[322850372,1713409846469,-1015.22944174,0.00031342,4]
[322850373,1713409846478,-375.03062502,0.00031342,4]
[322850374,1713409846487,-1000.0,0.00031343,2]
[322850375,1713409846496,-151.0,0.00031343,2]
[322850376,1713409846506,-151.0,0.00031343,2]
[322850377,1713409846516,-20255.35928952,0.00031344,2]
[322850378,1713409846527,-1532.84180828,0.00031344,2]
[322850403,1713410069248,-2565.59033741,0.00021,2]
[322850404,1713410069347,-52.35898648,0.00021,2]
[322850406,1713410170778,300.67539591,1e-08,30]
[322850413,1713410847140,-171.8722451,0.00027397,2]
[322850414,1713410847163,-2890.69864972,0.000298,14]
[322850415,1713410850098,907.16710257,5e-05,10]
[322850444,1713411032204,-166.666666,0.00029418,2]
[322850445,1713411032213,-178.4931456,0.00030094,2]
[322850446,1713411032222,-24.69774878,0.0003022,2]
[322850637,1713411043419,-141.96891722,0.0003022,2]
[322850638,1713411043428,-168.036925,0.00030231,2]
[322850639,1713411043437,-419.125,0.00030385,2]
[322850640,1713411043446,-166.666666,0.00031022,2]
[322850641,1713411043455,-672.97237823,0.00031143,2]
[322850642,1713411043463,-1876.27918073,0.00031198,4]
[322850643,1713411043473,-400.0,0.00031199,2]
[322850644,1713411043481,-400.0,0.00031199,2]
[322850646,1713411043490,-678.02552035,0.000312,2]
[322850677,1713411595260,10000.0,0.00025,30]
[322850678,1713411601824,10000.0,0.00025,30]
[322850679,1713411607905,10000.0,0.00025,30]
[322850680,1713411615582,10000.0,0.00025,30]
[322850681,1713411621147,10000.0,0.00025,30]
[322850682,1713411626805,10000.0,0.00025,30]
[322850683,1713411637323,10000.0,0.00025,30]
[322850684,1713411643485,10000.0,0.00025,30]
[322850685,1713411650351,10000.0,0.00025,30]
[322850686,1713411669039,3360.59,0.00025,30]
[322850687,1713411733603,1659.0,0.00025,30]
[322850689,1713412030116,-156.3507885,0.00022897,2]
[322850690,1713412151258,-237.9814523,0.00022899,2]
[322850691,1713412151278,-171.7198316,0.000229,2]
[322850692,1713412168163,-123.67941286,0.000229,2]
[322850693,1713412168183,-2237.526655,0.00026892,2]
[322850794,1713412238462,-3149.86736027,0.00026892,2]
[322850926,1713412243664,-1998.15522363,0.00026892,2]
[322850928,1713412243674,-247.761909,0.00026916,2]
[322850930,1713412243684,-157.519236,0.00027397,2]
[322850931,1713412243693,-340.200231,0.00027397,2]
[322850934,1713412243703,-166.666666,0.00027397,2]
[322850935,1713412243712,-167.033969,0.00027397,2]
[322850938,1713412243722,-300.0,0.00027858,2]
[322850940,1713412243732,-300.0,0.00027858,2]
[322850941,1713412243741,-2552.57311123,0.00027859,2]
[322850962,1713413347150,-196.93282964,0.00025759,2]
[322850963,1713413347174,-322.652069,0.00027397,2]
[322850964,1713413347197,-81.12405438,0.00027859,2]
[322851110,1713413442148,-150.0,0.00025759,2]
[322851112,1713413442157,-338.325,0.00027859,2]
[322851239,1713413443780,-0.02766615,0.00027859,2]
[322851277,1713414440173,-150.0,0.00025759,2]
[322851278,1713414440195,-2912.57089482,0.000267,2]
[322851279,1713414553109,-1960.0,0.000267,2]
[322851280,1713414574138,-147.65497776,0.000267,2]
[322851281,1713414574162,-294.19651726,0.00027397,2]
[322851626,1713414646806,-134.57545074,0.00027397,2]
[322851628,1713414646815,-166.666666,0.00027397,2]
[322851630,1713414646824,-335.11788326,0.00027668,3]
[322851675,1713415648149,-156.3507885,0.00025564,2]
[322851679,1713415773106,-154.79876161,0.00025566,2]
[322851680,1713415773131,-205.8725987,0.00025567,2]
[322851681,1713415773152,-129.93694842,0.00025568,2]
[322851714,1713415831985,-150.0,0.00023468,2]
[322851716,1713415831995,-247.761909,0.0002687,2]
[322851718,1713415832005,-264.760675,0.00027336,2]
[322851999,1713415837899,-1992.76598,0.00027336,2]
[322852000,1713415837909,-200.0,0.0002735,15]
[322852001,1713415837918,-165.594131,0.00027397,2]
[322852002,1713415837928,-166.666666,0.00027397,2]
[322852003,1713415837941,-300.0,0.00027522,2]
[322852004,1713415837950,-300.0,0.00027522,2]
[322852005,1713415837960,-20189.9169567,0.00027523,2]
[322852006,1713415837969,-437.87115862,0.00027568,3]
[322852007,1713415837981,-755.62077021,0.00027668,2]
[322852008,1713415837990,-168.036925,0.00027929,2]
[322852009,1713415837999,-166.666666,0.0002809,2]
[322852010,1713415838008,-166.666666,0.00028783,2]
[322852011,1713415838019,-4990.19408047,0.00029098,2]
[322852090,1713415846392,-162.53402226,0.00029098,2]
[322852091,1713415846401,-151.0,0.00029098,2]
[322852092,1713415846410,-135.01976211,0.00029098,2]
[322852099,1713416080895,1103.73041244,0.00021,2]
[322852100,1713416185691,10000.0,0.00025,30]
[322852102,1713416201883,8999.0,0.00025,30]
[322852123,1713416742113,-306.519465,0.00027397,2]
[322852124,1713416742131,-166.666666,0.00029038,2]
[322852125,1713416742150,-755.62077021,0.00029098,2]
[322852126,1713416742169,-153.0,0.000296,2]
[322852127,1713416742303,-153.0,0.000297,2]
[322852128,1713416742322,-153.0,0.000298,2]
[322852129,1713416742341,-153.0,0.000298,2]
[322852130,1713416742360,-153.0,0.000298,2]
[322852131,1713416742381,-153.0,0.000298,2]
[322852132,1713416742400,-46.09601748,0.000298,2]
[322852227,1713417038121,-150.0,0.00025297,2]
[322852228,1713417038132,-106.90398252,0.000298,2]
[322852229,1713417038141,-153.0,0.000298,2]
[322852230,1713417038150,-602.4592854,0.000298,2]
[322852231,1713417038159,-166.666666,0.00029829,2]
[322852233,1713417038168,-300.0,0.0003,7]
[322852235,1713417038177,-1000.0,0.0003,2]
[322852237,1713417038186,-152.779012,0.0003,2]
[322852239,1713417038196,-166.666666,0.00030621,2]
[322852241,1713417038205,-174.194574,0.00030785,2]
[322852243,1713417038214,-151.0,0.00030785,2]
[322852245,1713417038223,-151.0,0.00030785,2]
[322852247,1713417038232,-400.0,0.00030803,2]
[322852249,1713417038241,-400.0,0.00030803,2]
[322852251,1713417038250,-151.0,0.00030804,2]
[322852253,1713417038259,-151.0,0.00030804,2]
[322852255,1713417038267,-151.0,0.00030804,2]
[322852257,1713417038276,-151.0,0.00030804,2]
[322852259,1713417038285,-151.0,0.00030804,2]
[322852261,1713417038294,-151.0,0.00030804,2]
[322852263,1713417038303,-151.0,0.00030804,2]
[322852265,1713417038312,-151.0,0.00030804,2]
[322852267,1713417038321,-151.0,0.00030807,2]
[322852269,1713417038330,-263.068278,0.00030807,2]
[322852271,1713417038339,-151.0,0.00030835,2]
[322852273,1713417038349,-151.0,0.00030835,2]
[322852275,1713417038358,-151.375908,0.00030835,2]
[322852277,1713417038367,-36.18562808,0.00030835,2]
[322852612,1713417948154,-219.29029187,0.00027397,2]
[322852613,1713418026320,-204.17568113,0.00027397,2]
[322852614,1713418026346,-165.594131,0.00027397,2]
[322852615,1713418026367,-150.0,0.00028707,2]
[322852616,1713418026386,-166.666666,0.00029374,2]
[322852617,1713418026406,-551.0,0.0003,2]
[322852618,1713418026426,-166.666666,0.00030175,2]
[322852619,1713418026446,-950.0,0.000308,3]
[322852620,1713418026465,-396.19858276,0.00030835,4]
[322852621,1713418026485,-257.63088911,0.00030899,2]
[322852622,1713418026509,-54.63827882,0.000309,2]
[322852840,1713418246428,-294.1965295,0.00027397,2]
[322852841,1713418246437,-166.666666,0.00029489,2]
[322852842,1713418246446,-166.666666,0.00030293,2]
[322852843,1713418246455,-148.69768028,0.000309,2]
[322852844,1713418246467,-203.3359591,0.000309,2]
[322852845,1713418246476,-203.3359591,0.000309,2]
[322852846,1713418246485,-203.3359591,0.000309,2]
[322852847,1713418246494,-257.63088909,0.000309,2]
[322852848,1713418246503,-383.13726381,0.000309,5]
[322852849,1713418246512,-257.63088909,0.00030973,2]
[322852850,1713418246521,-400.0,0.00030998,2]
[322852851,1713418246530,-166.0,0.00030998,2]
[322852852,1713418246539,-197.824417,0.00030999,2]
[322852853,1713418246548,-151.0,0.00030999,2]
[322852854,1713418246558,-193.045976,0.00030999,2]
[322852855,1713418246567,-151.0,0.00030999,2]
[322852856,1713418246576,-151.0,0.00030999,2]
[322852857,1713418246586,-151.0,0.00030999,2]
[322852858,1713418246595,-151.0,0.00030999,2]
[322852859,1713418246604,-500.0,0.00031,7]
[322852860,1713418246614,-500.0,0.00031,7]
[322852861,1713418246624,-500.0,0.00031,7]
[322852862,1713418246634,-500.0,0.00031,7]
[322852863,1713418246643,-500.0,0.00031,7]
[322852864,1713418246652,-500.0,0.00031,7]
[322852865,1713418246662,-500.0,0.00031,7]
[322852866,1713418246671,-500.0,0.00031,7]
[322852867,1713418246680,-500.0,0.00031,7]
[322852868,1713418246690,-500.0,0.00031,7]
[322852869,1713418246699,-500.0,0.00031,7]
[322852870,1713418246709,-500.0,0.00031,7]
[322852871,1713418246719,-500.0,0.00031,7]
[322852872,1713418246728,-500.0,0.00031,7]
[322852873,1713418246737,-500.0,0.00031,7]
[322852874,1713418246747,-500.0,0.00031,7]
[322852875,1713418246758,-500.0,0.00031,7]
[322852876,1713418246767,-500.0,0.00031,7]
[322852877,1713418246777,-500.0,0.00031,7]
[322852878,1713418246786,-500.0,0.00031,7]
[322852879,1713418246796,-500.0,0.00031,7]
[322852880,1713418246805,-500.0,0.00031,7]
[322852881,1713418246814,-500.0,0.00031,7]
[322852882,1713418246823,-500.0,0.00031,7]
[322852883,1713418246833,-500.0,0.00031,7]
[322852884,1713418246842,-500.0,0.00031,7]
[322852885,1713418246851,-500.0,0.00031,7]
[322852886,1713418246860,-500.0,0.00031,7]
[322852887,1713418246869,-500.0,0.00031,7]
[322852888,1713418246878,-500.0,0.00031,7]
[322852889,1713418246898,-500.0,0.00031,7]
[322852890,1713418246909,-500.0,0.00031,7]
[322852891,1713418246919,-403.0,0.00031,7]
[322852892,1713418246929,-3570.188876,0.00031,2]
[322852893,1713418246939,-203.2761986,0.00031,2]
[322852894,1713418246949,-203.2761986,0.00031,2]
[322852895,1713418246959,-151.0,0.00031,2]
[322852896,1713418246969,-151.0,0.00031,2]
[322852897,1713418246978,-151.0,0.00031,2]
[322852898,1713418246987,-151.0,0.00031,2]
[322852899,1713418246997,-151.0,0.00031,2]
[322852900,1713418247006,-151.0,0.00031,2]
[322852901,1713418247016,-151.0,0.00031,2]
[322852902,1713418247026,-216.678596,0.00031,2]
[322852903,1713418247035,-151.0,0.00031,2]
[322852904,1713418247045,-151.0,0.00031,2]
[322852905,1713418247055,-151.0,0.00031,2]
[322852906,1713418247065,-151.0,0.00031,2]
[322852907,1713418247074,-151.0,0.00031,2]
[322852908,1713418247084,-151.0,0.00031,2]
[322852909,1713418247094,-151.0,0.00031,2]
[322852910,1713418247103,-151.0,0.00031,2]
[322852911,1713418247113,-151.0,0.00031,2]
[322852912,1713418247123,-151.0,0.00031,2]
[322852913,1713418247132,-172.631236,0.00031,2]
[322852914,1713418247142,-151.0,0.00031,2]
[322852915,1713418247151,-151.0,0.00031,2]
[322852916,1713418247162,-151.0,0.00031,2]
[322852917,1713418247171,-151.0,0.00031,2]
[322852918,1713418247181,-151.0,0.00031,2]
[322852919,1713418247191,-151.0,0.00031,2]
[322852920,1713418247200,-151.0,0.00031,2]
[322852921,1713418247210,-151.0,0.00031,2]
[322852922,1713418247219,-151.0,0.00031,2]
[322852923,1713418247228,-151.0,0.00031,2]
[322852924,1713418247237,-151.0,0.00031,2]
[322852925,1713418247247,-161.062077,0.00031,2]
[322852926,1713418247256,-151.0,0.00031,2]
[322852927,1713418247265,-151.0,0.00031,2]
[322852928,1713418247274,-151.0,0.00031,2]
[322852929,1713418247283,-151.0,0.00031,2]
[322852930,1713418247293,-151.0,0.00031,2]
[322852931,1713418247302,-151.0,0.00031,2]
[322852932,1713418247312,-151.0,0.00031,2]
[322852933,1713418247322,-151.0,0.00031,2]
[322852934,1713418247331,-151.0,0.00031,2]
[322852935,1713418247340,-151.0,0.00031,2]
[322852936,1713418247350,-271.380868,0.00031,2]
[322852937,1713418247359,-151.0,0.00031,2]
[322852938,1713418247368,-151.0,0.00031,2]
[322852939,1713418247378,-151.0,0.00031,2]
[322852940,1713418247388,-151.0,0.00031,2]
[322852941,1713418247397,-151.0,0.00031,2]
[322852942,1713418247407,-151.0,0.00031,2]
[322852943,1713418247416,-151.0,0.00031,2]
[322852944,1713418247426,-165.493698,0.00031,2]
[322852945,1713418247435,-151.0,0.00031,2]
[322852946,1713418247445,-151.0,0.00031,2]
[322852947,1713418247454,-151.0,0.00031,2]
[322852948,1713418247464,-151.0,0.00031,2]
[322852949,1713418247474,-151.0,0.00031,2]
[322852950,1713418247483,-151.0,0.00031,2]
[322852951,1713418247492,-151.0,0.00031,2]
[322852952,1713418247502,-151.0,0.00031,2]
[322852953,1713418247511,-151.0,0.00031,2]
[322852954,1713418247521,-151.0,0.00031,2]
[322852955,1713418247530,-151.0,0.00031,2]
[322852956,1713418247539,-151.0,0.00031,2]
[322852957,1713418247548,-151.0,0.00031,2]
[322852958,1713418247557,-185.319218,0.00031,2]
[322852959,1713418247566,-151.0,0.00031,2]
[322852960,1713418247576,-151.0,0.00031,2]
[322852961,1713418247588,-151.0,0.00031,2]
[322852962,1713418247598,-151.0,0.00031,2]
[322852963,1713418247607,-151.0,0.00031,2]
[322852964,1713418247618,-151.0,0.00031,2]